bitfinex-derivatives/quotes_ETHF0:USTF0_20250421
["timestamp","ask_amount","ask_price","bid_price","bid_amount"]
[1745201817072,1.9969,1632.2,1632.1,2.119]
[1745201817472,3.22246,1632.2,1632.1,2.119]
[1745201820380,1.22568,1632.1,1631.9,7.14019961]
[1745201820578,4.1238,1632.1,1631.9,9.16359961]
[1745201820772,3.06434,1632.0,1631.6,2.70667961]
[1745201820972,1.22586,1631.8,1631.7,2.0234]
[1745201821279,4.1272,1632.0,1631.7,3.48991]
[1745201821280,3.31634,1631.9,1631.7,3.48991]
[1745201821467,1.22586,1631.8,1631.7,4.2874]
[1745201821780,3.31636,1631.8,1631.7,4.2874]
[1745201821977,5.45116,1631.8,1631.7,4.2874]
[1745201822279,4.2253,1631.8,1631.7,3.24933]
[1745201823180,4.2253,1631.8,1631.7,5.51333]
[1745201823380,5.45116,1631.8,1631.7,4.2874]
[1745201823570,5.45116,1631.8,1631.7,2.264]
[1745201823770,5.45116,1631.8,1631.6,2.70667961]
[1745201823771,9.1623,1631.8,1631.3,2.70667961]
[1745201823977,6.51788,1631.7,1631.5,1.22607]
[1745201824184,0.00917095,1631.7,1631.6,1.22601]
[1745201824377,0.00917095,1631.7,1631.6,9.24098961]
[1745201824571,0.00917095,1631.7,1631.6,11.30468961]
[1745201825183,0.00917095,1631.7,1631.6,6.03318961]
[1745201825875,2.04207095,1631.7,1631.6,6.03318961]
[1745201826276,0.00917095,1631.7,1631.6,6.03318961]
[1745201826683,1.22601,1631.6,1631.5,2.264]
[1745201826986,3.22411,1631.6,1631.5,2.264]
[1745201827191,3.22411,1631.6,1631.5,2.0591]
[1745201827888,1.22623,1631.3,1631.2,8.04747961]
[1745201828186,5.2839,1631.5,1631.3,1.22617]
[1745201828375,1.23512095,1631.7,1631.5,1.22601]
[1745201828573,1.22603,1631.6,1631.4,4.43391]
[1745201829088,1.22603,1631.6,1631.4,6.69791]
[1745201829285,3.37953,1631.6,1631.5,1.983]
[1745201829475,1.22608,1631.5,1631.4,2.2785]
[1745201829678,2.1535,1631.5,1631.4,3.50466]
[1745201829876,0.00917095,1631.7,1631.5,1.22606]
[1745201830079,3.38860095,1631.7,1631.6,1.983]
[1745201831388,2.16267095,1631.7,1631.6,3.20901]
[1745201831582,3.38860095,1631.7,1631.6,3.20901]
[1745201831777,3.38860095,1631.7,1631.6,1.983]
[1745201838097,1.22601,1631.6,1631.5,4.98517961]
[1745201838393,3.24721,1631.6,1631.5,2.264]
[1745201838596,3.24721,1631.6,1631.5,4.3557]
[1745201839589,3.24721,1631.6,1631.5,2.264]
[1745201840295,1.22608,1631.5,1631.4,2.1062]
[1745201840500,3.24728,1631.5,1631.4,2.1062]
[1745201840693,3.24728,1631.5,1631.4,2.0917]
[1745201840893,3.21697095,1631.7,1631.4,2.0917]
[1745201840894,0.00917095,1631.7,1631.4,2.0917]
[1745201841091,0.00917095,1631.7,1631.6,1.22601]
[1745201841496,0.00917095,1631.7,1631.6,3.34241]
[1745201841698,9.37134,1632.3,1631.7,3.06479]
[1745201841998,1.22556,1632.2,1631.9,1.22573]
[1745201842197,1.22556,1632.2,1632.0,4.1552]
[1745201842389,1.22556,1632.2,1632.1,2.1164]
[1745201842606,3.41876,1632.2,1632.1,2.1164]
[1745201842804,5.58826,1632.2,1632.1,2.1164]
[1745201844092,1.22556,1632.2,1632.1,2.1164]
[1745201845206,3.32826,1632.2,1632.1,2.1164]
[1745201845705,1.22563,1632.1,1632.0,2.264]
[1745201845907,3.32833,1632.1,1632.0,2.264]
[1745201846098,8.1480058,1632.3,1632.0,2.264]
[1745201846299,1.22563,1632.1,1632.0,4.4255]
[1745201847207,2.1027,1632.2,1632.0,4.4255]
[1745201847409,2.1027,1632.2,1632.1,3.41003]
[1745201848610,11.4940458,1632.3,1632.2,1.22556]
[1745201848611,7.06767095,1632.3,1632.2,1.22556]
[1745201848812,7.06767095,1632.3,1632.2,6.61776]
[1745201848998,2.12967095,1632.3,1632.2,6.61776]
[1745201849204,2.12967095,1632.3,1632.2,8.88176]
[1745201849908,4.27207095,1632.3,1632.2,8.88176]
[1745201850713,5.49755095,1632.3,1632.2,5.4718]
[1745201850906,5.49755095,1632.3,1632.2,2.264]
[1745201850907,10.42255095,1632.3,1632.2,2.264]
[1745201851113,10.42255095,1632.3,1632.0,2.1191]
[1745201851114,1.22563,1632.1,1632.0,2.1191]
[1745201851315,1.22571,1632.0,1631.9,2.70667961]
[1745201851521,3.42371,1632.0,1631.9,2.70667961]
[1745201852017,2.198,1632.0,1631.9,2.70667961]
[1745201852220,2.198,1632.0,1631.9,7.08977961]
[1745201852517,4.3452,1632.0,1631.9,7.08977961]
[1745201852819,3.2078,1632.2,1632.0,1.22571]
[1745201853022,2.1472,1632.2,1632.1,1.22563]
[1745201854018,9.25267095,1632.3,1632.2,1.22556]
[1745201854221,4.93417095,1632.3,1632.2,3.48956]
[1745201854712,4.93417095,1632.3,1632.2,5.65366]
[1745201854914,4.93417095,1632.3,1632.2,5.66816]
[1745201855521,0.00917095,1632.3,1632.2,10.66816]
[1745201856822,0.00917095,1632.3,1632.2,5.66816]
[1745201859019,0.00917095,1632.3,1632.2,8.37483961]
[1745201864124,4.44245095,1632.3,1632.2,2.72117961]
[1745201864329,13.51585095,1632.3,1632.2,2.72117961]
[1745201864716,13.51585095,1632.3,1632.2,2.0205]
[1745201864920,10.30805095,1632.3,1632.2,2.0205]
[1745201866325,0.00917095,1632.3,1632.2,3.24606]
[1745201867126,0.00917095,1632.3,1632.2,5.51006]
[1745201870330,0.00917095,1632.3,1632.2,8.21673961]
[1745201873031,4.924,1633.1,1632.2,17.35363206]
[1745201873232,2.1263,1632.9,1632.8,1.22503]
[1745201873434,4.2444,1633.0,1632.9,1.22503]
[1745201873734,5.46936,1633.0,1632.8,5.94705961]
[1745201873934,2.1263,1632.9,1632.8,5.94705961]
[1745201875839,4.2444,1633.0,1632.9,1.22503]
[1745201876036,1.22503,1632.9,1632.8,2.70667961]
[1745201876235,2.0289,1632.9,1632.8,2.70667961]
[1745201876531,2.0289,1632.9,1632.8,1.22511]
[1745201876738,2.0289,1632.9,1632.8,3.33251]
[1745201877837,2.0289,1632.9,1632.8,1.22511]
[1745201879537,2.0289,1632.9,1632.8,3.21401]
[1745201880245,2.0289,1632.9,1632.8,1.22511]
[1745201881637,2.0289,1632.9,1632.8,3.34541]
[1745201882542,2.1527,1633.0,1632.9,1.22503]
[1745201882748,4.93317095,1633.1,1633.0,1.22496]
[1745201883247,0.00917095,1633.1,1633.0,5.60926]
[1745201884142,0.00917095,1633.1,1633.0,3.34526]
[1745201886341,4.2357,1633.4,1633.3,1.22473]
[1745201886543,4.2357,1633.4,1633.3,4.43253]
[1745201886747,4.2357,1633.4,1633.3,1.22473]
[1745201887245,4.2357,1633.4,1633.3,6.49653]
[1745201888038,2.05347095,1633.5,1633.4,1.22466]
[1745201888244,0.00917095,1633.5,1633.4,3.28866]
[1745201888745,1.22466,1633.4,1633.3,3.2078]
[1745201888949,4.1821,1633.4,1633.3,4.43247]
[1745201889146,4.1821,1633.4,1633.3,3.28867]
[1745201890249,0.00917095,1633.5,1633.4,1.22466]
[1745201890445,0.00917095,1633.5,1633.4,3.24596]
[1745201890643,1.22466,1633.4,1633.3,3.2078]
[1745201890845,2.1056,1633.4,1633.2,2.70667961]
[1745201891046,4.0859,1633.3,1633.2,1.22477]
[1745201892045,3.48868,1633.4,1633.2,1.22477]
[1745201892252,1.23380095,1633.5,1633.3,1.22473]
[1745201892450,2.0964,1633.4,1633.1,3.2078]
[1745201892639,13.27489,1633.4,1632.8,5.91447961]
[1745201892845,1.22487,1633.2,1633.0,1.22493]
[1745201893148,3.21788,1633.1,1632.9,1.22497]
[1745201893344,2.0379,1633.0,1632.9,1.22497]
[1745201893746,2.0379,1633.0,1632.9,3.42237]
[1745201894146,6.4077,1633.0,1632.9,3.42237]
[1745201894743,2.264,1633.0,1632.9,3.42237]
[1745201894947,4.3019,1633.0,1632.8,7.13956961]
[1745201895249,4.3019,1633.0,1632.8,4.43291]
[1745201895250,3.26523,1632.9,1632.8,4.43291]
[1745201895451,5.30313,1632.9,1632.8,3.2078]
[1745201896243,4.0781,1632.9,1632.8,3.2078]
[1745201896643,4.0781,1632.9,1632.8,4.43291]
[1745201896840,6.902,1633.1,1632.8,3.2078]
[1745201897045,8.9422,1633.1,1633.0,1.22496]
[1745201897246,10.1671,1633.1,1632.9,1.22499]
[1745201897455,1.22498,1633.0,1632.8,3.2078]
[1745201897657,10.16714,1633.1,1632.9,1.22503]
[1745201898248,1.9952,1633.0,1632.9,1.22503]
[1745201898554,3.22016,1633.0,1632.8,4.43285]
[1745201899056,1.22496,1633.0,1632.8,4.43285]
[1745201899447,1.22496,1633.0,1632.9,1.22503]
[1745201899853,1.22503,1632.9,1632.8,3.2078]
[1745201900058,7.16236,1633.1,1632.7,0.00917095]
[1745201900059,1.22511,1632.8,1632.7,0.00917095]
[1745201900247,9.34291,1632.8,1632.7,0.00917095]
[1745201900555,14.34291,1632.8,1632.7,0.00917095]
[1745201901157,16.60691,1632.8,1632.7,0.00917095]
[1745201902156,14.34291,1632.8,1632.7,0.00917095]
[1745201902552,8.17021,1632.8,1632.7,0.00917095]
[1745201902759,13.17021,1632.8,1632.7,0.00917095]
[1745201903054,8.17021,1632.8,1632.7,0.00917095]
[1745201904555,3.06315,1632.6,1632.1,3.2078]
[1745201904751,3.25588,1632.5,1632.1,3.2078]
[1745201904952,8.16588,1632.5,1632.2,3.38769]
[1745201905158,8.16588,1632.5,1632.3,3.38767]
[1745201905560,6.9405,1632.5,1632.3,3.38762]
[1745201905859,8.16583,1632.5,1632.4,2.1361]
[1745201906061,10.33673,1632.5,1632.4,2.1361]
[1745201906251,6.9405,1632.5,1632.4,3.36151]
[1745201906451,4.91,1632.5,1632.4,3.36151]
[1745201906652,1.23443095,1632.6,1632.4,5.35551]
[1745201906955,1.23443095,1632.6,1632.5,2.1361]
[1745201907657,0.00917095,1632.6,1632.5,2.1361]
[1745201908159,0.00917095,1632.6,1632.5,4.4001]
[1745201909148,0.00917095,1632.6,1632.5,5.62543]
[1745201909756,0.00917095,1632.6,1632.5,8.83323]
[1745201909959,0.00917095,1632.6,1632.5,10.96083]
[1745201910156,2.0164,1632.7,1632.6,1.22526]
[1745201910459,4.2334,1633.1,1632.6,3.38686]
[1745201910660,1.22502,1633.0,1632.8,1.22508]
[1745201910862,3.32232,1633.0,1632.8,1.22508]
[1745201911048,2.0973,1633.0,1632.9,3.38663]
[1745201911755,3.37020095,1633.1,1632.9,3.38663]
[1745201911955,3.37020095,1633.1,1633.0,2.015]
[1745201912152,5.63420095,1633.1,1633.0,2.015]
[1745201912353,7.79920095,1633.1,1633.0,3.23996]
[1745201912866,7.79920095,1633.1,1633.0,2.015]
[1745201913261,7.79920095,1633.1,1633.0,3.23996]
[1745201913562,6.57427095,1633.1,1633.0,3.23996]
[1745201913860,2.27317095,1633.1,1633.0,3.23996]
[1745201914254,0.00917095,1633.1,1633.0,3.23996]
[1745201914463,0.00917095,1633.1,1633.0,6.44776]
[1745201915857,0.00917095,1633.1,1633.0,3.23996]
[1745201916754,0.00917095,1633.1,1633.0,6.44776]
[1745201918358,1.23405095,1633.1,1633.0,6.44776]
[1745201918562,4.16857095,1633.1,1633.0,6.44776]
[1745201918753,5.39345095,1633.1,1633.0,5.2228]
[1745201919360,4.16857095,1633.1,1633.0,6.44776]
[1745201919656,5.39345095,1633.1,1633.0,2.015]
[1745201919861,5.39345095,1633.1,1632.9,3.93165961]
[1745201920057,5.39345095,1633.1,1632.9,6.03855961]
[1745201920262,4.34607095,1633.1,1633.0,1.22496]
[1745201920463,4.34607095,1633.1,1633.0,3.33186]
[1745201920759,2.27317095,1633.1,1633.0,6.53966]
[1745201921262,0.00917095,1633.1,1633.0,6.53966]
[1745201922564,0.00917095,1633.1,1633.0,3.33186]
[1745201922763,4.34467095,1633.1,1633.0,3.33186]
[1745201922957,2.18957095,1633.1,1633.0,3.33186]
[1745201924965,0.00917095,1633.1,1633.0,6.53966]
[1745201926359,0.00917095,1633.1,1633.0,9.24633961]
[1745201927062,12.35582941,1633.7,1633.2,3.062]
[1745201927265,10.18762941,1633.7,1633.6,1.22451]
[1745201927965,10.18762941,1633.7,1633.6,3.93118961]
[1745201928163,5.3156193,1633.7,1633.6,9.21478961]
[1745201929469,0.00917095,1633.8,1633.7,1.22443]
[1745201929766,0.00917095,1633.8,1633.7,5.54843]
[1745201930859,4.23987095,1633.8,1633.7,5.54843]
[1745201931065,4.23987095,1633.8,1633.7,3.35993]
[1745201932070,5.46428095,1633.8,1633.6,7.13896961]
[1745201932263,2.0493,1633.7,1633.6,4.43229]
[1745201932465,2.0493,1633.7,1633.6,6.56779]
[1745201933171,2.19057095,1633.8,1633.7,1.22443]
[1745201933375,2.19057095,1633.8,1633.7,3.40373]
[1745201933868,1.22443,1633.7,1633.6,3.2078]
[1745201934070,2.264,1633.7,1633.6,4.43231]
[1745201934573,4.2715,1633.7,1633.6,6.61161]
[1745201935675,2.264,1633.7,1633.6,6.61161]
[1745201936067,2.264,1633.7,1633.6,9.31828961]
[1745201936272,0.00917095,1633.8,1633.7,1.22443]
[1745201936472,0.00917095,1633.8,1633.7,3.38863]
[1745201937674,0.00917095,1633.8,1633.7,5.49673]
[1745201938571,0.00917095,1633.8,1633.7,13.20340961]
[1745201939571,0.00917095,1633.8,1633.7,8.20340961]
[1745201943383,9.5e-07,1633.8,1633.7,13.20340961]
[1745201943990,15.21802762,1634.9,1633.8,19.5058]
[1745201944188,4.1725,1634.9,1634.8,1.22361]
[1745201944588,9.1725,1634.9,1634.8,1.22361]
[1745201944792,10.39605,1634.9,1634.7,1.22366]
[1745201944992,2.1886,1634.8,1634.7,1.22366]
[1745201945187,2.1886,1634.8,1634.7,4.43146]
[1745201945689,2.1886,1634.8,1634.7,1.22366]
[1745201945994,2.1886,1634.8,1634.7,4.43146]
[1745201946196,1.22368,1634.7,1634.6,0.00917095]
[1745201946695,8.41228,1634.7,1634.6,0.00917095]
[1745201947290,9.4526,1634.7,1634.6,1.23293095]
[1745201947498,4.4526,1634.7,1634.6,1.23293095]
[1745201947696,2.264,1634.7,1634.6,1.23293095]
[1745201947899,2.264,1634.7,1634.6,3.21753095]
[1745201948106,8.9881,1634.9,1634.8,1.22361]
[1745201950198,11.2521,1634.9,1634.8,1.22361]
[1745201950393,4.3712,1634.9,1634.8,1.22361]
[1745201950790,6.3503,1634.9,1634.8,1.22361]
[1745201951095,17.61697,1634.9,1634.6,2.71585056]
[1745201951294,1.22368,1634.7,1634.6,2.71585056]
[1745201951697,1.9791,1634.8,1634.7,1.22368]
[1745201951887,1.9791,1634.8,1634.6,3.93955056]
[1745201952089,5.46675,1634.8,1634.6,7.14735056]
[1745201952291,1.22368,1634.7,1634.6,5.92365056]
[1745201952495,3.20278,1634.7,1634.6,5.92365056]
[1745201952695,1.9791,1634.7,1634.6,4.44073095]
[1745201953099,5.46678,1634.7,1634.6,4.44073095]
[1745201953598,5.46678,1634.7,1634.6,0.00917095]
[1745201954994,10.46678,1634.7,1634.6,0.00917095]
[1745201955200,1.22389,1634.5,1634.3,3.93065961]
[1745201955402,2.0442,1634.4,1634.3,1.22398]
[1745201955701,4.1897,1634.4,1634.3,1.22398]
[1745201956201,6.4537,1634.4,1634.3,1.22398]
[1745201958106,4.1897,1634.4,1634.3,1.22398]
[1745201958405,4.1897,1634.4,1634.2,0.00917095]
[1745201958605,1.22398,1634.3,1634.2,0.00917095]
[1745201958800,6.63488,1634.3,1634.2,0.00917095]
[1745201958996,11.51688,1634.3,1634.2,0.00917095]
[1745201959196,3.06042,1634.1,1633.6,2.0406]
[1745201959402,1.22439,1633.8,1633.6,1.22448]
[1745201959614,1.22439,1633.8,1633.6,2.0486]
[1745201959802,2.2031,1633.9,1633.5,2.70667961]
[1745201960004,1.22481,1633.2,1633.1,7.89006996]
[1745201960508,0.00917095,1633.3,1633.2,1.22481]
[1745201960704,0.00917095,1633.3,1633.2,6.49541]
[1745201961901,0.00917095,1633.3,1633.2,9.20208961]
[1745201963908,4.882,1633.5,1633.4,1.22466]
[1745201964209,4.3369,1633.7,1633.6,1.22451]
[1745201964707,4.883,1633.8,1633.7,1.22443]
[1745201964909,4.883,1633.8,1633.7,3.35143]
[1745201965408,2.17927095,1633.9,1633.8,1.22436]
[1745201966109,4.44327095,1633.9,1633.8,1.22436]
[1745201967400,5.66761095,1633.9,1633.7,1.22441]
[1745201967606,5.66761095,1633.9,1633.8,1.22436]
[1745201967607,4.44327095,1633.9,1633.8,1.22436]
[1745201968812,2.26399999,1633.9,1633.8,12.13883961]
[1745201969102,0.89148999,1633.9,1633.8,11.32703961]
[1745201969301,4.2562,1634.4,1633.8,10.10267961]
[1745201969302,1.22402,1634.3,1633.8,10.10267961]
[1745201969502,2.0564,1634.2,1634.1,3.2078]
[1745201970214,4.3204,1634.2,1634.0,1.23331095]
[1745201970513,5.54446,1634.2,1634.0,1.23331095]
[1745201970713,1.22413,1634.1,1634.0,0.00917095]
[1745201971017,2.0564,1634.1,1634.0,0.00917095]
[1745201971306,2.0564,1634.1,1633.7,3.2078]
[1745201971307,1.2243,1633.9,1633.7,3.2078]
[1745201971513,5.43776,1633.8,1633.7,3.2078]
[1745201971714,4.2134,1633.8,1633.7,3.2078]
[1745201971911,4.2134,1633.8,1633.7,1.22443]
[1745201972113,2.264,1633.8,1633.7,1.22443]
[1745201972314,2.264,1633.8,1633.7,3.38173]
[1745201973112,2.183,1633.9,1633.8,1.22436]
[1745201973312,3.40729,1633.9,1633.7,3.38169]
[1745201973708,2.183,1633.9,1633.7,3.38169]
[1745201973913,2.183,1633.9,1633.8,1.22436]
[1745201974415,2.183,1634.1,1634.0,1.22421]
[1745201974611,3.40713,1634.1,1633.9,3.38153]
[1745201975114,2.183,1634.1,1633.9,2.1573]
[1745201975319,1.22425,1634.0,1633.8,1.22434]
[1745201975812,2.0106,1634.0,1633.9,1.22428]
[1745201976018,3.48818,1634.1,1633.9,1.22428]
[1745201976219,2.0106,1634.1,1634.0,2.1207]
[1745201976418,3.23473,1634.1,1634.0,2.1207]
[1745201977214,2.264,1634.1,1634.0,6.55271]
[1745201977412,2.25482905,1634.1,1634.0,14.25938961]
[1745201977815,2.25482905,1634.1,1634.0,16.25608961]
[1745201978123,0.00917095,1634.3,1634.2,1.22406]
[1745201978323,0.00917095,1634.3,1634.2,5.91447961]
[1745201978621,0.00917095,1634.3,1634.2,7.13853961]
[1745201979820,0.00917095,1634.3,1634.2,12.13853961]
[1745201980022,0.00917095,1634.3,1634.2,14.33903961]
[1745201980223,0.00917095,1634.3,1634.2,16.60303961]
[1745201981220,0.00917095,1634.3,1634.2,14.33903961]
[1745201982524,0.00917095,1634.3,1634.2,9.33903961]
[1745201983213,0.00917095,1634.3,1634.2,14.33903961]
[1745201983528,0.00917095,1634.3,1634.2,5.91447961]
[1745201983824,0.00917095,1634.3,1634.2,7.13853961]
[1745201984015,1.23315095,1634.3,1634.2,5.91447961]
[1745201984215,5.51275095,1634.3,1634.2,5.91447961]
[1745201984424,4.28877095,1634.3,1634.2,5.91447961]
[1745201984618,4.28877095,1634.3,1634.2,7.13853961]
[1745201984817,6.45507095,1634.3,1634.2,7.13853961]
[1745201985017,6.45507095,1634.3,1634.2,3.93073961]
[1745201986225,4.28877095,1634.3,1634.2,7.13853961]
[1745201986624,5.51275095,1634.3,1634.2,2.70667961]
[1745201986927,4.28877095,1634.3,1634.2,2.70667961]
[1745201987128,4.28877095,1634.3,1634.2,3.93073961]
[1745201987322,4.28877095,1634.3,1634.2,5.92743961]
[1745201987928,4.28877095,1634.3,1634.2,3.22076]
[1745201988128,2.02477095,1634.3,1634.2,3.22076]
[1745201989132,6.27907095,1634.3,1634.2,3.22076]
[1745201990626,6.27907095,1634.3,1634.0,3.2078]
[1745201990933,2.1402,1634.2,1634.1,1.22412]
[1745201991123,4.4042,1634.2,1634.1,1.22412]
[1745201991518,2.264,1634.2,1634.1,3.29622]
[1745201992330,2.02477095,1634.3,1634.2,1.22406]
[1745201992533,2.02477095,1634.3,1634.2,3.29616]
[1745201992729,2.02477095,1634.3,1634.2,6.50396]
[1745201992924,0.00917095,1634.3,1634.2,6.50396]
[1745201993125,0.00917095,1634.3,1634.2,9.21063961]
[1745201996428,2.10937095,1634.3,1634.2,9.21063961]
[1745201996727,2.10937095,1634.3,1634.2,6.50396]
[1745201997236,4.37337095,1634.3,1634.2,6.50396]
[1745201997637,4.37337095,1634.3,1634.2,4.43186]
[1745201999137,2.10937095,1634.3,1634.2,4.43186]
[1745202001243,0.00917095,1634.3,1634.2,4.43186]
[1745202001943,0.00917095,1634.3,1634.2,6.53536]
[1745202002844,0.00917095,1634.3,1634.2,11.34353961]
[1745202004642,0.00917095,1634.3,1634.2,16.34353961]
[1745202005438,0.00917095,1634.3,1634.2,16.77995691]
[1745202005641,0.00917095,1634.3,1634.2,11.78017202]
[1745202005939,0.00917095,1634.3,1634.2,11.34353961]
[1745202006350,0.00917095,1634.3,1634.2,11.78029905]
[1745202008042,0.00917095,1634.3,1634.2,11.78046224]
[1745202009451,0.00917095,1634.3,1634.2,16.78039476]
[1745202009951,0.00917095,1634.3,1634.2,16.78032325]
[1745202010145,0.00917095,1634.3,1634.2,16.78026496]
[1745202010546,0.00917095,1634.3,1634.2,11.78026496]
[1745202010745,0.00917095,1634.3,1634.2,11.78044404]
[1745202012043,0.00917095,1634.3,1634.2,11.780495]
[1745202013452,9.5e-07,1634.3,1634.2,16.780495]
[1745202013852,9.5e-07,1634.3,1634.2,16.78052481]
[1745202014347,9.5e-07,1634.3,1634.2,19.04452481]
[1745202017056,2.002,1634.9,1634.8,1.22361]
[1745202017253,2.0563,1635.1,1635.0,1.22346]
[1745202017447,2.0563,1635.1,1635.0,4.43126]
[1745202017961,4.2843,1635.2,1635.1,1.22338]
[1745202018252,11.3467,1635.2,1635.0,3.21697095]
[1745202018456,2.0624,1635.1,1635.0,4.44039095]
[1745202018948,2.0624,1635.1,1635.0,6.51429095]
[1745202019154,9.3264,1635.1,1635.0,4.44039095]
[1745202019354,4.3264,1635.1,1635.0,4.44039095]
[1745202019753,4.3264,1635.1,1635.0,4.44043095]
[1745202020550,4.3264,1635.1,1635.0,3.21697095]
[1745202020752,10.54978,1635.1,1635.0,3.21697095]
[1745202021050,10.54978,1635.1,1634.6,4.861]
[1745202021051,1.2235,1635.0,1634.6,1.22374]
[1745202021250,1.9663,1635.0,1634.7,1.22368]
[1745202021555,2.264,1635.1,1634.9,1.22353]
[1745202021756,1.9663,1635.0,1634.9,1.22353]
[1745202022252,4.2303,1635.0,1634.9,1.22353]
[1745202022560,4.2303,1635.0,1634.9,3.17833]
[1745202022756,4.2303,1635.0,1634.9,6.38613]
[1745202023057,4.2303,1635.0,1634.8,0.00917095]
[1745202023255,4.0301,1634.9,1634.8,0.00917095]
[1745202023457,4.0301,1634.9,1634.8,1.96397095]
[1745202023862,7.0604,1635.2,1634.8,4.67065056]
[1745202024155,11.1067,1635.2,1634.8,4.67065056]
[1745202024456,1.9825,1635.1,1635.0,1.22341]
[1745202025158,4.2465,1635.1,1635.0,1.22341]
[1745202025359,4.2465,1635.1,1634.9,3.28018]
[1745202025559,1.9825,1635.0,1634.9,1.22348]
[1745202025858,2.264,1635.1,1635.0,1.22346]
[1745202026261,2.264,1635.1,1635.0,3.28016]
[1745202026857,4.2465,1635.1,1635.0,3.28016]
[1745202027058,4.2465,1635.1,1634.9,3.2078]
[1745202027258,1.9506,1635.0,1634.9,4.43133]
[1745202027454,1.9506,1635.0,1634.8,2.71585056]
[1745202027455,1.22353,1634.9,1634.8,0.00917095]
[1745202027663,1.22368,1634.7,1634.6,2.70667961]
[1745202027965,1.22378,1634.6,1634.3,9.10823961]
[1745202028158,1.8873,1634.5,1634.3,9.10821961]
[1745202028359,1.9506,1634.4,1634.3,9.10821961]
[1745202029054,5.4718,1634.7,1634.3,12.74427961]
[1745202029258,6.8589,1634.8,1634.4,1.9698]
[1745202029259,3.8379,1634.6,1634.4,1.9698]
[1745202029758,3.8379,1634.6,1634.4,3.19368]
[1745202030063,1.9506,1634.5,1634.4,3.19368]
[1745202030658,1.9506,1634.5,1634.4,1.22388]
[1745202030865,1.9506,1634.5,1634.4,1.22391]
[1745202031050,1.22391,1634.4,1634.3,2.70667961]
[1745202031250,5.2552,1634.4,1634.2,0.00917095]
[1745202031456,5.28328,1634.3,1634.2,0.00917095]
[1745202031855,10.28328,1634.3,1634.2,0.00917095]
[1745202032056,10.28328,1634.3,1634.1,0.0144]
[1745202032057,1.22406,1634.2,1634.1,0.0144]
[1745202032258,6.44616,1634.2,1634.1,0.0144]
[1745202032451,2.0143,1634.2,1634.0,1.2242]
[1745202032756,2.0143,1634.1,1633.9,1.22423]
[1745202032957,2.0143,1634.1,1634.0,0.0144]
[1745202033157,4.2783,1634.1,1634.0,0.0144]
[1745202035258,2.0143,1634.1,1634.0,0.0144]
[1745202035861,3.23843,1634.1,1634.0,0.0144]
[1745202036261,4.2783,1634.1,1634.0,0.0144]
[1745202036564,5.50243,1634.1,1634.0,0.0144]
[1745202036761,4.2783,1634.1,1634.0,0.0144]
[1745202036959,5.50243,1634.1,1634.0,0.0144]
[1745202037260,3.23843,1634.1,1634.0,0.0144]
[1745202038265,4.2783,1634.1,1634.0,0.0144]
[1745202038668,5.50243,1634.1,1634.0,0.0144]
[1745202039563,1.22421,1634.0,1633.9,0.00917095]
[1745202039758,8.31671,1634.0,1633.9,0.00917095]
[1745202039954,5.10891,1634.0,1633.9,0.00917095]
[1745202040163,10.58071,1634.0,1633.9,0.00917095]
[1745202040961,15.58071,1634.0,1633.9,0.00917095]
[1745202041168,15.58071,1634.0,1633.3,93.77889807]
[1745202041169,1.22458,1633.5,1633.3,7.13917961]
[1745202041359,1.22458,1633.5,1633.3,4.43249]
[1745202041560,3.2078,1633.6,1633.2,10.59674957]
[1745202041561,1.22472,1633.4,1633.2,10.59674957]
[1745202041762,1.9666,1633.3,1633.2,10.59674957]
[1745202041962,1.9666,1633.3,1633.2,13.70125957]
[1745202042272,4.2306,1633.3,1633.2,13.70125957]
[1745202042764,5.45533,1633.3,1633.2,9.76976996]
[1745202042965,5.45533,1633.3,1633.2,7.89006996]
[1745202043168,10.45533,1633.3,1633.2,2.56495376]
[1745202043466,1.22481,1633.2,1633.1,11.91576077]
[1745202043770,1.22481,1633.2,1633.1,0.00917095]
[1745202043771,11.31221,1633.2,1633.1,0.00917095]
[1745202043971,16.31221,1633.2,1633.1,0.00917095]
[1745202044171,18.57621,1633.2,1633.1,0.00917095]
[1745202045562,13.57621,1633.2,1633.1,0.00917095]
[1745202046265,11.31221,1633.2,1633.1,0.00917095]
[1745202046469,10.0874,1633.2,1633.1,0.00917095]
[1745202046667,11.31221,1633.2,1633.1,0.00917095]
[1745202047174,16.31221,1633.2,1633.1,0.00917095]
[1745202047374,6.8796,1633.2,1633.1,0.00917095]
[1745202047672,0.00917095,1633.4,1633.2,1.22481]
[1745202047873,1.93117095,1633.4,1633.2,1.22481]
[1745202048075,1.93117095,1633.4,1633.3,1.22473]
[1745202048371,3.15583095,1633.4,1633.2,1.22476]
[1745202048874,1.93117095,1633.4,1633.3,1.22473]
[1745202049064,2.27317095,1633.4,1633.3,1.22473]
[1745202049870,2.27317095,1633.4,1633.3,6.22473]
[1745202050169,0.00917095,1633.4,1633.3,6.22473]
[1745202050374,0.00917095,1633.4,1633.3,10.21123]
[1745202052065,0.00917095,1633.4,1633.3,5.21123]
[1745202055481,0.00917095,1633.4,1633.3,7.91790961]
[1745202055674,0.00917095,1633.4,1633.3,9.85850961]
[1745202057578,8.0628,1634.1,1633.8,1.22435]
[1745202057773,11.2683,1634.1,1633.9,2.0275]
[1745202057973,1.22421,1634.0,1633.9,2.0275]
[1745202058174,5.46951,1634.0,1633.9,2.0275]
[1745202059279,4.2453,1634.0,1633.9,2.0275]
[1745202059482,4.2453,1634.0,1633.9,3.25178]
[1745202059681,4.2453,1634.0,1633.9,2.0275]
[1745202061477,4.2453,1634.0,1633.9,3.25178]
[1745202062979,2.264,1634.0,1633.9,3.25178]
[1745202063176,2.27317095,1634.1,1634.0,1.22421]
[1745202063375,2.27317095,1634.1,1634.0,3.26841]
[1745202064381,0.00917095,1634.1,1634.0,3.26841]
[1745202065880,1.23330095,1634.1,1634.0,2.0442]
[1745202066074,2.27317095,1634.1,1634.0,1.22421]